{"text_format":"3","workbook":"xlsx","n_sheets":1,"sheets":["Sheet1"],"not_rendered":{"defined_names":1},"read":"whole","date_system":"1900"}

{"sheet":"Sheet1","index":0,"n_rows":60,"n_cols":59,"rows_kept":60,"merged":[[2,2,3,5],[3,6,3,9]]}
[]
[]
[null,null,"заказ переводных учебников на 2019 -20 уч.год  "]
[{"$nulls":10},1,2,3,4,5,6,7,8,9,10,11,12,13,14,15,16,17,18,19,20,21,22,23,24,25,26,27,28,29,30,31,32,33,34,35,36,37,38,39,40,41,42,43,44,45,46]
[]
[]
[]
[null,"№","Автор/авторский коллектив","Наименование учебника","Класс","Наименование издателя(ей) учебника","Издательство переводного учебника",null,"подпись"," Тат. Ямалы ООШ","Агрызский","Азнакаевский","Аксубаевский","Актанышский","Алексеевский","Алькеевский","Альметьевский","Апастовский","Арский","Атнинский","Бавлинский","Балтасинский","Бугульминский","Буинский","Высокогорский","Дрожжановский","Елабужский","Заинский","Зеленодольский","Кайбицкий","Камско-Устьинский","Кукморский","Лаишевский","Лениногорский","Мамадышский","Мензелинский","Менделеевский","Муслюмовский","г. Наб. Челны","Нижнекамский","Новошешминский","Нурлатский","Пестречинский","Рыбно-Слободский","Спасский","Тетюшский","Тукаевский","Тюлячинский","Черемшанский","Чистопольский","Ютазинский","Авиастроительный","Вахитовский","Кировский","Московский","Советский","Итого","Цена","Сумма"]
[null,1,"Дорофеев Г.В., Миракова Т.Н., Бука Т.Б.","Математика. В 2-х частях","1","Издательство «Просвещение»","ТКИ",{"$nulls":4},23,9,{"$nulls":4},40,null,15,{"$nulls":4},13,0,10,2,44,2,{"$nulls":8},151,0,null,null,14,{"$nulls":3},0,null,null,0,{"$nulls":7},{"$f":"SUM(K9:BD9)","v":323}]
[null,2,"Моро М.И., Волкова С И., Степанова С.В.","Математика. В 2-х частях","1","Издательство «Просвещение»","ТКИ",{"$nulls":5},3,21,{"$nulls":3},20,210,null,32,146,null,null,2,13,10,null,18,13,12,29,15,null,null,27,24,null,null,23,null,22,29,{"$nulls":3},0,20,81,19,8,{"$nulls":6},797]
[null,3,"Плешаков А. А.","Окружающий мир. В 2-х частях","1","Издательство «Просвещение»","ТКИ",{"$nulls":5},7,24,{"$nulls":3},20,null,null,32,146,null,null,1,13,10,2,18,10,12,29,15,null,null,22,24,null,null,23,null,22,16,{"$nulls":3},0,null,81,13,8,{"$nulls":6},548]
[null,4,"Плешаков А.А., Новицкая М.Ю., Хусаинов З.А.","Окружающий мир. В 2-х частях","1","Издательство «Просвещение»","ТКИ",{"$nulls":4},18,9,{"$nulls":4},40,210,50,{"$nulls":4},13,0,4,null,26,2,{"$nulls":8},241,0,null,null,7,{"$nulls":3},0,null,null,0,{"$nulls":7},620]
[null,5,"Роговцева Н.И., Богданова Н.В., Фрейтаг И.П.","Технология",1,"Издательство «Просвещение»","ТКИ",{"$nulls":3},30,18,11,44,5,null,40,20,100,40,32,146,null,null,19,21,6,2,16,null,null,16,15,null,null,19,24,null,118,63,null,18,11,{"$nulls":3},0,10,30,15,8,{"$nulls":4},70,null,967]
[null,6,"Дорофеев Г.В., Миракова Т.Н., Бука Т.Б.","Математика. В 2-х частях","2","Издательство «Просвещение»","ТКИ",{"$nulls":4},8,null,null,5,null,null,40,215,15,{"$nulls":4},18,0,4,6,136,{"$nulls":9},89,30,null,null,10,{"$nulls":3},0,null,null,0,{"$nulls":7},576]
[null,7,"Моро М.И., Бантова М.А., Бельтюкова Г.В. и др.","Математика. В 2-х частях","2","Издательство «Просвещение»","ТКИ",{"$nulls":4},11,null,238,{"$nulls":3},20,null,null,17,135,10,null,2,23,6,null,31,9,12,20,25,null,null,30,40,null,null,18,null,28,25,{"$nulls":3},0,null,81,2,8,{"$nulls":4},25,null,816]
[null,8,"Плешаков А. А.","Окружающий мир. В 2-х частях","2","Издательство «Просвещение»","ТКИ",{"$nulls":4},11,8,238,{"$nulls":3},20,null,15,17,135,10,null,null,29,10,1,35,6,12,65,25,null,null,63,40,null,null,18,null,28,51,{"$nulls":3},0,null,81,3,8,{"$nulls":6},929]
[null,9,"Плешаков А.А., Новицкая М.Ю., Хусаинов З.А.","Окружающий мир. В 2-х частях","2","Издательство «Просвещение»","ТКИ",{"$nulls":4},17,null,null,10,null,null,40,215,50,{"$nulls":4},12,6,10,3,121,{"$nulls":7},40,null,57,30,null,null,3,{"$nulls":3},0,null,null,0,{"$nulls":7},614]
[null,10,"Роговцева Н.И., Богданова Н.В., Фрейтаг И.П.","Технология",2,"Издательство «Просвещение»","ТКИ",{"$nulls":3},30,29,4,236,5,null,60,20,100,40,null,135,10,null,15,30,10,9,41,null,null,72,25,null,null,23,5,null,102,63,null,23,8,{"$nulls":3},0,10,30,0,8,null,null,30,null,85,null,1258]
[null,11,"Дорофеев Г.В., Миракова Т.Н., Бука Т.Б.","Математика. В 2-х частях","3","Издательство «Просвещение»","ТКИ",{"$nulls":4},56,50,null,5,null,114,40,220,80,{"$nulls":3},55,74,0,35,53,72,6,35,10,null,null,130,{"$nulls":3},288,30,null,null,8,null,10,30,23,null,null,0,null,32,45,null,125,30,null,1656]
[null,12,"Моро М.И., Бантова М.А., Бельтюкова Г.В. и др.","Математика, В 2-х частях","3","Издательство «Просвещение»","ТКИ",{"$nulls":3},60,10,null,211,null,65,null,20,null,null,66,274,10,40,5,63,17,null,48,47,12,186,55,7,null,30,40,null,222,26,48,57,69,100,null,null,65,70,null,30,10,null,null,30,56,30,null,2079]
[null,13,"Плешаков А. А.","Окружающий мир. В 2-х частях","3","Издательство «Просвещение»","ТКИ",{"$nulls":3},60,10,8,211,null,65,362,20,null,35,66,274,10,40,null,58,7,5,42,47,12,213,55,7,null,65,40,null,132,26,48,57,51,100,null,null,72,70,null,30,30,32,null,30,56,100,null,2546]
[null,14,"Плешаков А.А., Новицкая М.Ю., Хусаинов З.А.","Окружающий мир. В 2-х частях","3","Издательство «Просвещение»","ТКИ",{"$nulls":4},56,50,null,5,null,347,40,220,80,{"$nulls":3},55,80,12,35,38,76,6,35,10,null,null,130,{"$nulls":3},420,62,null,3,20,null,10,30,23,null,null,0,null,null,45,null,125,40,null,2053]
[null,15,"Роговцева Н.И., Богданова Н.В., Добромыслова Н.В.","Технология","3","Издательство «Просвещение»","ТКИ",{"$nulls":3},60,48,57,211,5,65,107,null,100,40,49,274,null,95,81,50,42,53,71,33,50,93,55,7,130,25,20,null,420,63,null,31,25,100,10,30,84,70,null,0,32,112,45,30,181,200,null,3254]
[null,16,"Моро М.И., Бантова М.А., Бельтюкова Г.В. и др.","Математика, В 2-х частях",4,"Издательство «Просвещение»","ТКИ",{"$nulls":3},60,10,9,{"$nulls":8},274,10,null,11,54,0,null,40,37,12,179,{"$nulls":3},41,50,null,219,34,null,72,34,100,null,null,5,null,null,25,10,null,25,null,56,30,null,1397]
[null,17,"Дорофеев Г.В., Миракова Т.Н., Бука Т.Б.","Математика, В 2-х частях",4,"Издательство «Просвещение»","ТКИ",{"$nulls":4},3,{"$nulls":4},42,null,190,15,{"$nulls":4},56,0,0,11,133,null,35,10,null,null,130,null,10,null,261,30,null,null,8,{"$nulls":3},23,null,null,0,null,null,45,null,null,30,null,1032]
[null,18,"Плешаков А.А., Крючкова Е.А.","Окружающий мир. В 2-х частях",4,"Издательство «Просвещение»","ТКИ",{"$nulls":3},60,null,12,{"$nulls":3},150,null,null,15,null,274,10,null,4,54,0,9,40,37,12,169,{"$nulls":3},67,50,null,99,34,null,72,9,100,null,null,5,null,null,25,30,{"$nulls":3},56,50,null,1443]
[null,19,"Плешаков А.А., Новицкая М.Ю., Хусаинов З.А.","Окружающий мир. В 2-х частях",4,"Издательство «Просвещение»","ТКИ",{"$nulls":4},15,{"$nulls":4},42,null,190,15,{"$nulls":4},54,0,0,2,133,null,35,10,null,null,130,{"$nulls":3},381,30,null,null,23,{"$nulls":3},23,null,null,0,null,null,45,null,null,65,null,1193]
[null,20,"Роговцева Н.И., Богданова Н.В.,Шипилова Н.В., Анащенкова С.В.","Технология",4,"Издательство «Просвещение»","ТКИ",{"$nulls":3},60,13,6,{"$nulls":3},67,null,100,40,null,274,null,null,45,59,0,10,51,28,50,80,null,null,130,33,30,null,407,53,null,39,28,100,null,null,23,null,null,0,30,null,45,30,56,200,null,2087]
[null,21,"Синица Н.В., Симоненко В.Д.","Технология. Технологии ведения дома. 5 класс","5","Издательский центр ВЕНТАНА-ГРАФ","ТКИ",{"$nulls":14},131,null,null,2,21,0,null,33,3,{"$nulls":5},4,45,null,30,52,null,3,26,{"$nulls":3},0,null,null,0,null,null,15,null,null,5,null,370]
[null,22,"Боголюбов Л.Н., Виноградова Н.Ф., Городецкая НИ и др. / Под ред. Боголюбова Л.Н., Ивановой Л.Ф.","Обществознание","5","Издательство «Просвещение»","ТКИ",{"$nulls":4},1,{"$nulls":9},131,{"$nulls":3},17,0,null,8,{"$nulls":4},6,null,5,45,null,225,37,null,5,36,{"$nulls":3},0,null,10,0,10,{"$nulls":6},536]
[null,23,"Домогацких Е.М., Введенский Э.Л., Плешаков А.А.","География. Введение в географию","5","Русское слово","ТКИ",{"$nulls":4},1,{"$nulls":4},50,null,50,null,null,131,{"$nulls":3},17,0,14,8,{"$nulls":3},55,14,null,3,45,null,210,37,null,5,72,80,null,null,0,null,60,0,10,{"$nulls":4},20,null,882]
[null,24,"Дорофеев Г.Ф., И.Ф.Шарыгин, С.Б.Суворова","Математика ",5,"Издательство «Просвещение»","ТКИ",{"$nulls":4},9,51,null,15,null,18,null,185,95,null,131,null,null,14,5,7,5,24,19,null,8,null,22,null,2,null,null,120,15,null,49,82,80,16,null,8,50,60,23,24,null,25,null,125,null,null,1287]
[null,25,"Пасечник В В.","Биология","5","ДРОФА","ТКИ",{"$nulls":4},1,{"$nulls":6},30,null,null,131,null,null,5,45,0,null,8,{"$nulls":6},4,45,null,225,22,null,5,36,{"$nulls":3},0,null,20,0,10,{"$nulls":4},45,null,632]
[null,26,"Виноградова Н.Ф., Городецкая НИ., Иванова Л.Ф. и др. / Под ред. Боголюбова Л.Н., Ивановой Л.Ф.","Обществознание","6","Издательство «Просвещение»","ТКИ",{"$nulls":4},20,{"$nulls":9},105,{"$nulls":3},17,0,6,8,{"$nulls":4},6,null,3,45,null,180,25,null,null,30,{"$nulls":3},0,null,10,0,10,{"$nulls":6},465]
[null,27,"Домогацких Е.М., Алексеевский Н.И.","География","6","Русское слово","ТКИ",{"$nulls":9},50,null,50,null,null,105,{"$nulls":3},17,0,10,8,{"$nulls":3},55,14,null,6,45,null,210,37,null,18,76,80,null,null,0,null,60,0,10,{"$nulls":4},6,null,857]
[null,28,"Дорофеев Г.В., Шарыгин И.Ф., Суворова С.Б. и др. / Под ред. Дорофеева Г.В., Шарыгина И.Ф.","Математика","6","Издательство «Просвещение»","ТКИ",{"$nulls":11},440,null,null,105,{"$nulls":3},0,0,null,8,8,{"$nulls":6},45,null,90,15,null,15,40,80,null,null,0,null,20,0,16,null,25,{"$nulls":4},907]
[null,29,"Пасечник В.В.","Биология","6","ДРОФА","ТКИ",{"$nulls":14},105,{"$nulls":3},17,0,null,0,{"$nulls":6},7,45,null,180,22,null,15,40,{"$nulls":3},0,null,20,0,20,{"$nulls":4},6,null,477]
[null,30,"Арсентьев Н.М, Данилов А.А., Стефанович П.С., и др. /под редакцией Торкунова А.В.","История России. 6 класс. В 2-х частях",6,"Просвещение","ТКИ",{"$nulls":4},20,{"$nulls":6},50,null,null,105,{"$nulls":3},17,0,null,0,{"$nulls":4},6,null,7,45,null,150,37,null,null,30,{"$nulls":3},0,null,10,0,10,{"$nulls":6},487]
[null,31,"Синица Н.В Симоненко В.Д.","Технология. Технологии ведения дома. 6 класс","6","Издательский центр ВЕНТАНА-ГРАФ","ТКИ",{"$nulls":4},1,null,null,5,{"$nulls":6},65,{"$nulls":3},23,0,null,25,4,null,5,{"$nulls":3},3,45,null,96,28,null,5,29,{"$nulls":3},0,5,15,10,13,null,45,10,null,20,null,452]
[null,32,"Тищенко А.Т., Симоненко В.Д.","Технология. Индустриальные технологии. 6 класс","6","Издательский центр ВЕНТАНА-ГРАФ","ТКИ",{"$nulls":4},2,{"$nulls":9},72,{"$nulls":3},23,0,null,20,null,null,5,{"$nulls":3},12,45,null,90,24,null,5,23,{"$nulls":3},0,10,10,6,16,null,45,null,null,15,null,423]
[null,33,"Боголюбов Л.Н., Городецкая Н.И., Иванова Л.Ф. /под ред. Боголюбовой Л.Н.","Обществознание","7","Издательство «Просвещение»","ТКИ",{"$nulls":3},11,{"$nulls":7},50,null,null,83,null,null,6,18,0,1,30,4,null,5,null,4,null,13,40,null,20,34,null,17,49,20,null,null,0,null,30,11,10,{"$nulls":6},456]
[null,34,"Домогацких Е.М., Алексеевский Н.И.","География. В 2 ч.","7","Русское слово","ТКИ",{"$nulls":3},11,{"$nulls":5},50,null,50,null,null,47,null,null,11,18,0,9,0,4,null,6,55,19,null,13,40,null,20,34,null,19,76,80,null,null,0,5,60,11,10,{"$nulls":4},25,null,673]
[null,35,"Макарычев ЮН., Миндюк Н.Г., Нешков К.И. и др. / Под ред. Теляковского С.А.","Алгебра","7","Издательство «Просвещение»","ТКИ",{"$nulls":3},11,{"$nulls":7},50,null,null,49,null,null,11,17,0,12,25,4,null,6,null,4,null,16,40,null,20,19,null,2,26,20,null,null,0,null,20,11,{"$nulls":7},363]
[null,36,"Атанасян Л.С., Бутузов В.Ф., Кадомцев С.Б. и др.","Геометрия. 7-9 классы","7-9","Издательство «Просвещение»","ТКИ",{"$nulls":3},48,14,61,null,25,null,35,null,50,null,null,159,null,null,23,33,7,52,59,14,null,53,55,12,null,28,65,null,null,31,null,70,99,20,8,null,0,75,60,50,15,20,null,null,80,null,null,1321]
[null,37,"Перышкин А.В.","Физика","7","ДРОФА","ТКИ",{"$nulls":3},11,{"$nulls":7},50,null,null,55,null,null,11,14,0,1,10,4,null,21,null,4,null,14,40,null,20,19,null,8,46,20,null,null,0,null,15,11,{"$nulls":7},374]
[null,38,"Семакин И Г., Залогова Л. А., Русаков С.В., Шестакова Л.В.","Информатика: учебник для 7 класса","7","БИНОМ. Лаборатория знаний","ТКИ",{"$nulls":3},11,{"$nulls":10},50,6,null,11,12,0,1,0,4,null,10,null,4,null,17,20,null,20,19,null,22,52,20,null,null,0,null,11,11,{"$nulls":7},301]
[null,39,"Латюшин В.В., Шапкин В. А.","Биология","7","ДРОФА","ТКИ",{"$nulls":3},11,{"$nulls":7},50,null,null,55,null,null,11,17,0,1,10,4,null,6,{"$nulls":3},7,40,null,20,19,null,8,46,20,null,null,0,null,20,2,null,null,45,null,null,25,null,417]
[null,40,"Арсентьев Н.М, Данилов А.А., Курукин И.В., и др. /под редакцией Торкунова А.В.","История России. 7 класс. В 2-х частях",7,"Просвещение","ТКИ",{"$nulls":3},11,{"$nulls":7},50,null,null,55,null,null,11,24,0,1,31,4,null,6,{"$nulls":3},13,40,null,20,46,null,2,54,20,null,null,0,null,20,11,10,{"$nulls":4},25,null,454]
[null,41,"Синица Н.В., Симоненко В.Д.","Технология. Технологии ведения дома. 7 класс","7","Издательский центр ВЕНТАНА-ГРАФ","ТКИ",{"$nulls":3},5,{"$nulls":7},50,null,null,46,null,null,8,18,0,1,5,4,null,1,{"$nulls":3},12,20,null,15,25,null,null,33,12,null,null,0,5,11,0,3,null,15,null,null,10,null,299]
[null,42,"Тищенко А.Т., Симоненко В.Д.","Технология. Индустриальные технологии. 7 класс","7","Издательский центр ВЕНТАНА-ГРАФ","ТКИ",{"$nulls":3},6,{"$nulls":7},50,null,null,60,null,null,6,28,0,1,5,2,null,1,{"$nulls":3},12,20,null,15,25,null,null,14,15,null,null,0,15,null,9,6,null,15,null,null,10,null,315]
[null,1,"Макарычев Ю.Н., Миндюк Н.Г., Нешков К.И. и др. ","Алгебра",9,"Издательство «Просвещение»","ТКИ",7," "," "]
[null,2,"Домогацких Е.М., Алексеевский Н.И.","География ",9,"Русское слово","ТКИ",7," "," "]
[null,3,"Боголюбов Л.Н., Городецкая Н.И., Иванова Л.Ф. /под ред.Боголюбова Л.Н.","Обществознание",9,"Издательство «Просвещение»","ТКИ",7," "," "]
[null,4,"Арсентьев Н.М, Данилов А.А., Левандовский А.А., и др. /под редакцией Торкунова А.В.","История России.  В 2-х частях",9,"Издательство «Просвещение»","ТКИ",7," "," "]
[null,6,"Перышкин А.В., Гутник Е.М.","Физика",9,"ДРОФА","ТКИ",7," "," "]
[null,7,"Пасечник В.В., Каменский А.А., Криксунов Е.А.","Биология",9,"ДРОФА","ТКИ",7," "," "]
[null,8,"Рудзитис Г.Е., Фельдман Ф.Г.","Химия",9,"Издательство «Просвещение»","ТКИ",7," "]
[null,9,"Сорока-Цюпа О.С., Сорока-Цюпа А.О.","Всеобщая история. Новейшая история",9,"Издательство «Просвещение»","ТКИ",7," "]
[null,10,"Загладин Н.В.","Всеобщая история. Новейшая история XX-начало XXI в.",9,"Русское слово",null,7," "," "]
[null,11,"Атанасян Л. С, Бутузов В.Ф., Кадомцев СБ. и др.","Геометрия. 7-9 классы",9,"Издательство «Просвещение»","ТКИ",7," "," "]